bitfinex/quotes_BTCUSD_20250212
["timestamp","ask_amount","ask_price","bid_price","bid_amount"]
[1739402608640,0.153075,97991.0,97990.0,0.00204406]
[1739402608866,0.153075,97991.0,97990.0,0.00215066]
[1739402609966,0.153075,97991.0,97990.0,0.00015066]
[1739402610191,0.153075,97991.0,97990.0,0.00215066]
[1739402610432,0.153075,97991.0,97990.0,0.00015066]
[1739402610897,0.153075,97991.0,97990.0,0.00115066]
[1739402611571,0.17208402,97991.0,97990.0,0.00115066]
[1739402614189,0.15307,97994.0,97990.0,0.00115066]
[1739402614424,0.153068,97996.0,97990.0,0.00115066]
[1739402614670,0.01903428,97991.0,97990.0,0.15422666]
[1739402614909,0.01903428,97991.0,97990.0,0.00115066]
[1739402615640,0.17210928,97991.0,97990.0,0.00115066]
[1739402616103,0.17210928,97991.0,97990.0,0.00015066]
[1739402617331,0.17210928,97991.0,97990.0,0.00115066]
[1739402617605,0.01903428,97991.0,97990.0,0.00115066]
[1739402617818,0.04955029,97991.0,97990.0,0.00115066]
[1739402619269,0.15307,97994.0,97990.0,0.00115066]
[1739402619518,0.153072,97993.0,97990.0,0.00115066]
[1739402619757,0.153074,97992.0,97990.0,0.00115066]
[1739402620009,0.007,97991.0,97990.0,0.00015066]
[1739402620238,0.007,97991.0,97985.0,0.153084]
[1739402620239,0.00684934,97988.0,97983.0,0.153086]
[1739402620472,0.00684934,97988.0,97983.0,4.413e-05]
[1739402620973,0.15992934,97988.0,97983.0,4.413e-05]
[1739402622085,0.153081,97987.0,97983.0,4.413e-05]
[1739402622725,0.00684934,97988.0,97983.0,0.00204413]
[1739402622899,0.00684934,97988.0,97983.0,4.413e-05]
[1739402623354,0.01904127,97987.0,97983.0,4.413e-05]
[1739402623700,0.01904127,97987.0,97983.0,0.00204413]
[1739402623923,0.01904127,97987.0,97983.0,4.413e-05]
[1739402624125,0.153083,97986.0,97983.0,4.413e-05]
[1739402624353,0.17212327,97987.0,97983.0,0.00204413]
[1739402624906,0.00684934,97988.0,97983.0,0.00204413]
[1739402625509,0.00684934,97988.0,97983.0,4.413e-05]
[1739402625822,0.00684934,97988.0,97983.0,0.00204413]
[1739402626209,0.00684934,97988.0,97983.0,0.15513113]
[1739402626412,0.153081,97987.0,97983.0,0.00204413]
[1739402626725,0.153081,97987.0,97983.0,4.413e-05]
[1739402627071,0.17211983,97987.0,97983.0,0.00204413]
[1739402627196,0.17211983,97987.0,97983.0,4.413e-05]
[1739402627393,0.01903883,97987.0,97983.0,4.413e-05]
[1739402627599,0.153083,97986.0,97983.0,0.00204413]
[1739402628157,0.17212083,97987.0,97983.0,0.00204413]
[1739402628355,0.01903883,97987.0,97983.0,0.00204413]
[1739402628715,0.153083,97986.0,97983.0,0.00204413]
[1739402628969,0.153085,97985.0,97983.0,0.00204413]
[1739402629172,0.153086,97984.0,97983.0,0.00204413]
[1739402629577,0.153086,97984.0,97983.0,4.413e-05]
[1739402629954,0.153084,97985.0,97983.0,0.00204413]
[1739402630157,0.153084,97985.0,97983.0,4.413e-05]
[1739402630573,0.01903812,97984.0,97983.0,0.00204413]
[1739402630847,0.01903812,97984.0,97983.0,4.413e-05]
[1739402631011,0.17212412,97984.0,97983.0,0.00204413]
[1739402632515,0.17212412,97984.0,97983.0,4.413e-05]
[1739402632868,0.17212412,97984.0,97983.0,0.00204413]
[1739402633237,0.20258398,97984.0,97983.0,4.413e-05]
[1739402633609,0.20258398,97984.0,97983.0,0.00015073]
[1739402635199,0.04949798,97984.0,97983.0,0.00015073]
[1739402637042,0.057901,97984.0,97983.0,0.00015073]
[1739402638654,0.04949798,97984.0,97983.0,0.00015073]
[1739402639110,0.153082,97987.0,97983.0,0.00015073]
[1739402639285,0.153083,97986.0,97983.0,0.00015073]
[1739402639684,0.00684934,97988.0,97983.0,0.00115073]
[1739402639884,0.0495098,97984.0,97983.0,0.00015073]
[1739402640271,0.05791378,97984.0,97983.0,0.20426673]
[1739402640885,0.05791378,97984.0,97983.0,0.20526673]
[1739402641867,0.02744621,97984.0,97983.0,0.20526673]
[1739402642432,0.01904223,97984.0,97983.0,0.20526673]
[1739402642844,0.01904223,97984.0,97983.0,0.30977038]
[1739402643775,0.01904223,97984.0,97983.0,0.30677038]
[1739402643978,0.01904223,97984.0,97983.0,0.30877038]
[1739402644185,0.01904223,97984.0,97983.0,0.30677038]
[1739402644589,0.01904223,97984.0,97983.0,0.30877038]
[1739402644887,0.01904223,97984.0,97983.0,0.30677038]
[1739402645613,0.15992934,97988.0,97983.0,0.10265438]
[1739402645814,0.00684934,97988.0,97984.0,0.10250365]
[1739402646542,0.00684934,97988.0,97983.0,0.00215073]
[1739402646543,0.204108,97987.0,97983.0,0.00215073]
[1739402646691,0.153086,97984.0,97983.0,0.00215073]
[1739402646894,0.00684934,97988.0,97983.0,0.00215073]
[1739402647097,0.01904696,97987.0,97984.0,0.001]
[1739402647359,0.01904696,97987.0,97983.0,0.00015073]
[1739402647518,0.01904696,97987.0,97984.0,0.001]
[1739402647727,0.01904696,97987.0,97984.0,0.154085]
[1739402647940,0.01904696,97987.0,97984.0,0.153085]
[1739402648140,0.01904696,97987.0,97985.0,0.153084]
[1739402648480,0.00784934,97988.0,97983.0,0.15323673]
[1739402648481,0.04953271,97986.0,97983.0,0.15323673]
[1739402648683,0.04953271,97986.0,97984.0,0.153085]
[1739402649231,0.04953271,97986.0,97984.0,0.153086]
[1739402649859,0.01904696,97985.0,97984.0,0.153086]
[1739402650319,0.01904696,97985.0,97984.0,0.154086]
[1739402650637,0.01904696,97985.0,97984.0,0.153086]
[1739402651020,0.01904696,97985.0,97984.0,0.154086]
[1739402651245,0.01904696,97985.0,97984.0,0.153086]
[1739402651674,0.04952946,97985.0,97984.0,0.154086]
[1739402652387,0.04952946,97985.0,97984.0,0.001]
[1739402652900,0.04952946,97985.0,97983.0,0.00015073]
[1739402653332,0.04952946,97985.0,97984.0,0.002]
[1739402653934,0.04952946,97985.0,97984.0,0.155086]
[1739402654131,0.04952946,97985.0,97984.0,0.153086]
[1739402654509,0.04952946,97985.0,97983.0,0.00015073]
[1739402654895,0.04952946,97985.0,97984.0,0.002]
[1739402656051,0.04952946,97985.0,97983.0,0.00015073]
[1739402656454,0.04952946,97985.0,97983.0,0.00215073]
[1739402656588,0.04952946,97985.0,97983.0,0.00015073]
[1739402657012,0.05164232,97988.0,97984.0,0.001]
[1739402657208,0.05164232,97988.0,97983.0,0.00015073]
[1739402657478,0.05164232,97988.0,97983.0,0.00115073]
[1739402657981,0.05164232,97988.0,97983.0,0.00015073]
[1739402658194,0.05164232,97988.0,97983.0,0.15523773]
[1739402658564,0.05164232,97988.0,97984.0,0.153086]
[1739402659021,0.05164232,97988.0,97983.0,0.00215073]
[1739402659271,0.05164232,97988.0,97984.0,0.153086]
[1739402659458,0.05164232,97988.0,97986.0,0.153082]
[1739402659636,0.26213908,97990.0,97984.0,0.153086]
[1739402659833,0.10906208,97990.0,97984.0,0.153086]
[1739402660055,0.153078,97989.0,97984.0,0.153086]
[1739402660213,0.10906208,97990.0,97987.0,0.153081]
[1739402660616,0.10906208,97990.0,97986.0,0.153083]
[1739402661254,0.00838118,97989.0,97986.0,0.001]
[1739402661778,0.153081,97987.0,97986.0,0.001]
[1739402662520,0.232381,97987.0,97986.0,0.001]
[1739402662777,0.153086,97984.0,97983.0,0.00015073]
[1739402664048,0.16069905,97984.0,97983.0,0.00015073]
[1739402664466,0.16469905,97984.0,97983.0,0.00015073]
[1739402666773,0.16569905,97984.0,97983.0,0.00015073]
[1739402669567,0.18471798,97984.0,97983.0,0.00015073]
[1739402671464,0.21515017,97984.0,97983.0,0.00015073]
[1739402674066,0.21015017,97984.0,97983.0,0.00015073]
[1739402674259,0.21415017,97984.0,97983.0,0.00015073]
[1739402674973,0.21715017,97984.0,97983.0,0.00015073]
[1739402675903,0.18671798,97984.0,97983.0,0.00015073]
[1739402676102,0.18271798,97984.0,97983.0,0.00015073]
[1739402676316,0.17971798,97984.0,97983.0,0.00015073]
[1739402676512,0.18371798,97984.0,97983.0,0.00015073]
[1739402677396,0.17971798,97984.0,97983.0,0.00015073]
[1739402677597,0.18271798,97984.0,97983.0,0.00015073]
[1739402678000,0.17971798,97984.0,97983.0,0.00015073]
[1739402679214,0.18371798,97984.0,97983.0,0.00015073]
[1739402680950,0.17971798,97984.0,97983.0,0.00015073]
[1739402681590,0.14611798,97984.0,97983.0,0.00015073]
[1739402682432,0.15011798,97984.0,97983.0,0.00015073]
[1739402683071,0.15311798,97984.0,97983.0,0.00015073]
[1739402684689,0.13409905,97984.0,97983.0,0.00015073]
[1739402685263,0.13409905,97984.0,97939.0,0.0774]
[1739402685264,0.33900365,97984.0,97939.0,0.0774]
[1739402685458,0.204148,97968.0,97950.0,0.09201447]
[1739402685659,0.153122,97961.0,97953.0,0.0774]
[1739402685859,0.0795,97978.0,97955.0,0.15313192]
[1739402686115,0.204131,97976.0,97955.0,9.2e-07]
[1739402686311,0.15,97980.0,97955.0,9.2e-07]
[1739402686518,0.153122,97961.0,97955.0,9.2e-07]
[1739402686714,0.15312,97963.0,97955.0,9.2e-07]
[1739402686976,0.204136,97974.0,97957.0,0.153127]
[1739402687180,0.153118,97964.0,97956.0,0.1542356]
[1739402687399,0.153128,97957.0,97956.0,0.0001066]
[1739402687625,0.153128,97957.0,97956.0,0.0011066]
[1739402689362,0.153128,97957.0,97955.0,5.2e-07]
[1739402689363,0.15,97956.0,97955.0,5.2e-07]
[1739402689564,0.023,97954.0,97920.0,0.0001066]
[1739402689768,0.09201447,97940.0,97920.0,0.0001066]
[1739402689969,0.15318,97924.0,97920.0,0.0001066]
[1739402690193,0.0207559,97926.0,97920.0,0.0001066]
[1739402690520,0.153183,97922.0,97920.0,0.0001066]
[1739402691019,0.153183,97922.0,97920.0,0.00015066]
[1739402692701,0.155183,97922.0,97920.0,0.00015066]
[1739402692895,0.153184,97921.0,97920.0,0.00015066]
[1739402694405,0.154184,97921.0,97920.0,0.00015066]
[1739402694610,0.232384,97921.0,97920.0,0.00015066]
[1739402695031,0.154184,97921.0,97920.0,0.00015066]
[1739402695687,0.153184,97921.0,97920.0,0.00015066]
[1739402696045,0.157184,97921.0,97920.0,0.00015066]
[1739402696243,0.153184,97921.0,97920.0,0.00015066]
[1739402696662,0.153184,97921.0,97910.0,0.0001066]
[1739402696663,0.33830365,97921.0,97910.0,0.0001066]
[1739402696865,0.33830365,97921.0,97892.0,0.0001065]
[1739402696866,0.153228,97893.0,97892.0,0.0001065]
[1739402697066,0.153228,97893.0,97892.0,0.00054726]
[1739402699179,0.173845,97893.0,97892.0,0.00054726]
[1739402700424,0.177845,97893.0,97892.0,0.00054726]
[1739402701224,0.173845,97893.0,97892.0,0.00054726]
[1739402701432,0.18411586,97893.0,97892.0,0.00054726]
[1739402701595,0.18811586,97893.0,97892.0,0.00054726]
[1739402706482,0.18411586,97893.0,97892.0,0.00054726]
[1739402706604,0.19011586,97893.0,97892.0,0.00054726]
[1739402707052,0.18411586,97893.0,97892.0,0.00054726]
[1739402707248,0.19011586,97893.0,97892.0,0.00054726]
[1739402708239,0.18411586,97893.0,97892.0,0.00054726]
[1739402709377,0.180845,97893.0,97892.0,0.00054726]
[1739402709691,0.41957213,97917.0,97892.0,0.10305091]
[1739402709895,0.08151662,97907.0,97899.0,0.19929]
[1739402710103,0.08151662,97907.0,97900.0,0.153217]
[1739402710239,0.08151662,97907.0,97892.0,0.00054726]
[1739402710240,0.09157213,97917.0,97901.0,0.10250365]
[1739402710447,0.153201,97911.0,97901.0,0.10250365]
[1739402710645,0.020873,97915.0,97901.0,0.10250365]
[1739402710850,0.08151662,97917.0,97901.0,0.10250365]
[1739402711082,0.08151662,97927.0,97909.0,0.204269]
[1739402711277,0.08151662,97927.0,97906.0,0.204276]
[1739402711278,0.08151662,97927.0,97901.0,0.10250365]
[1739402711479,0.204239,97925.0,97901.0,0.10250365]
[1739402711716,0.0208996,97926.0,97901.0,0.10250365]
[1739402712278,0.153202,97910.0,97901.0,0.10250365]
[1739402712483,0.153197,97913.0,97904.0,0.153211]
[1739402712662,0.001,97911.0,97905.0,0.10250365]
[1739402713117,0.1542,97911.0,97905.0,0.10250365]
[1739402713550,0.204264,97913.0,97905.0,0.10250365]
[1739402713685,0.0268996,97926.0,97905.0,0.10250365]
[1739402713890,0.153205,97908.0,97905.0,0.10250365]
[1739402714084,0.001,97911.0,97905.0,0.10250365]
[1739402714465,0.1542,97911.0,97905.0,0.10250365]
[1739402714720,0.1532,97911.0,97905.0,0.10250365]
[1739402714922,0.204263,97913.0,97905.0,0.10250365]
[1739402715119,0.1532,97911.0,97905.0,0.10250365]
[1739402715921,0.00022387,97918.0,97905.0,0.10250365]
[1739402716540,0.204256,97916.0,97905.0,0.10250365]
[1739402716901,0.204254,97917.0,97905.0,0.10250365]
[1739402717101,0.153199,97912.0,97905.0,0.10250365]
[1739402719157,0.001,97912.0,97905.0,0.25571265]
[1739402719673,0.001,97912.0,97905.0,0.10250365]
[1739402719873,0.153205,97908.0,97905.0,0.10250365]
[1739402720608,0.153203,97909.0,97905.0,0.10250365]
[1739402720810,0.001,97912.0,97905.0,0.10250365]
[1739402720986,0.001,97912.0,97905.0,0.10350365]
[1739402721214,0.153202,97910.0,97905.0,0.10350365]
[1739402722157,0.00022387,97918.0,97917.0,0.15319]
[1739402722372,0.00022387,97918.0,97917.0,0.33169365]
[1739402723157,0.00022387,97918.0,97917.0,0.48169365]
[1739402723359,0.00022387,97918.0,97917.0,1.10209165]
[1739402723564,0.00022387,97918.0,97917.0,1.81522565]
[1739402723944,0.00022387,97918.0,97917.0,0.95672965]
[1739402724142,0.00022387,97918.0,97917.0,0.78868865]
[1739402726011,0.00022387,97918.0,97917.0,0.59995765]
[1739402726575,0.00022387,97918.0,97917.0,0.48469365]
[1739402726816,0.00022387,97918.0,97917.0,0.48169365]
[1739402727023,0.00122387,97918.0,97917.0,0.48769365]
[1739402731954,0.00122387,97918.0,97917.0,0.99832365]
[1739402734457,0.00122387,97918.0,97917.0,1.10900465]
[1739402736200,0.00122387,97918.0,97917.0,0.99832365]
[1739402740004,0.00122387,97918.0,97917.0,0.99843025]
[1739402740228,0.00122387,97918.0,97917.0,0.92243025]
[1739402742279,0.00122387,97918.0,97917.0,0.92943025]
[1739402742482,0.08151662,97933.0,97918.0,0.15]
[1739402742483,0.07574049,97933.0,97918.0,0.15]
[1739402742685,0.07574049,97933.0,97932.0,0.153167]
[1739402743249,0.00022387,97938.0,97937.0,0.153159]
[1739402743647,0.00022387,97938.0,97925.0,0.204236]
[1739402743880,0.00035604,97938.0,97935.0,0.153162]
[1739402744076,0.00035604,97938.0,97936.0,0.15316]
[1739402744301,0.00035604,97938.0,97930.0,0.204225]
[1739402744501,0.00035604,97938.0,97926.0,0.10250365]
[1739402744657,0.00035604,97938.0,97933.0,0.153164]
[1739402744861,0.00035604,97938.0,97933.0,0.16323513]
[1739402745063,0.153162,97936.0,97933.0,0.01007113]
[1739402745306,0.153162,97936.0,97932.0,0.004]
[1739402745782,0.00035604,97938.0,97932.0,0.004]
[1739402746125,0.00035604,97938.0,97933.0,0.153164]
[1739402746429,0.00035604,97938.0,97933.0,0.16337752]
[1739402746635,0.00035604,97938.0,97933.0,0.01121352]
[1739402746835,0.00035604,97938.0,97937.0,0.153159]
[1739402747939,0.00035604,97938.0,97937.0,0.25566265]
[1739402749819,0.00035604,97938.0,97937.0,0.25866265]
[1739402752776,0.00035604,97938.0,97937.0,0.10550365]
[1739402752989,0.00035604,97938.0,97937.0,0.25866265]
[1739402753783,0.00035604,97938.0,97937.0,0.10550365]
[1739402754327,0.00035604,97938.0,97937.0,0.25866265]
[1739402760307,0.00035604,97938.0,97937.0,0.10550365]
[1739402761571,0.00035604,97938.0,97937.0,0.25566265]
[1739402761728,0.00035604,97938.0,97937.0,0.25666265]
[1739402761928,0.00035604,97938.0,97937.0,0.25566265]
[1739402762327,0.00035604,97938.0,97937.0,0.25766265]
[1739402762535,0.00035604,97938.0,97937.0,0.25566265]
[1739402762734,0.00035604,97938.0,97937.0,0.25866265]
[1739402764494,0.00035604,97938.0,97937.0,0.25566265]
[1739402764701,0.00035604,97938.0,97937.0,0.33776265]
[1739402764901,0.00035604,97938.0,97937.0,0.33476265]
[1739402765103,0.00035604,97938.0,97937.0,0.84529265]
[1739402765286,0.00035604,97938.0,97937.0,0.84829265]
[1739402765707,0.00035604,97938.0,97937.0,0.84529265]
[1739402765917,0.00035604,97938.0,97937.0,0.84829265]
[1739402766111,0.00035604,97938.0,97937.0,0.84529265]
[1739402767679,0.00035604,97938.0,97937.0,0.85029265]
[1739402768557,0.00035604,97938.0,97937.0,1.7797056]
[1739402769259,0.00035604,97938.0,97937.0,1.7747056]
[1739402769472,0.00035604,97938.0,97937.0,1.7146466]
[1739402769679,0.00035604,97938.0,97937.0,1.4659746]
[1739402770665,0.00035604,97938.0,97937.0,1.4709746]
[1739402771029,0.00035604,97938.0,97937.0,1.3401856]
[1739402771632,0.00135604,97938.0,97937.0,1.3471856]
[1739402772914,0.00135604,97938.0,97937.0,1.6741856]
[1739402779387,0.00135604,97938.0,97937.0,1.3611756]
[1739402779641,0.00135604,97938.0,97937.0,1.7283326]
[1739402780418,0.00135604,97938.0,97937.0,1.6078496]
[1739402780803,0.00135604,97938.0,97937.0,1.57596665]
[1739402781035,0.00135604,97938.0,97937.0,1.45230265]
[1739402781456,0.00135604,97938.0,97937.0,1.25019265]
[1739402782453,0.00035604,97938.0,97937.0,1.24319265]
[1739402783215,0.00135604,97938.0,97937.0,1.24904075]
[1739402784993,0.00135604,97938.0,97937.0,0.92204075]
[1739402788363,0.00135604,97938.0,97937.0,0.61888175]
[1739402788519,0.15451404,97938.0,97937.0,0.61888175]
[1739402788719,0.00135604,97938.0,97937.0,0.61888175]
[1739402789529,0.15451404,97938.0,97937.0,0.61888175]
[1739402789873,0.15451404,97938.0,97937.0,0.51753]
[1739402790044,0.23581404,97938.0,97937.0,0.51753]
[1739402792011,0.24240941,97938.0,97937.0,0.51053]
[1739402793405,0.24440941,97938.0,97937.0,0.51053]
[1739402793818,0.23681404,97938.0,97937.0,0.51053]
[1739402795088,0.23481404,97938.0,97937.0,0.51053]
[1739402795846,0.23581404,97938.0,97937.0,0.51053]
[1739402796348,0.23681404,97938.0,97937.0,0.51053]
[1739402796554,0.23481404,97938.0,97937.0,0.51053]
[1739402796929,0.23581404,97938.0,97937.0,0.51053]
[1739402798154,0.23481404,97938.0,97937.0,0.51053]
[1739402798580,0.23581404,97938.0,97937.0,0.51053]
[1739402800132,0.08265604,97938.0,97937.0,0.51053]
[1739402800333,0.00135604,97938.0,97937.0,0.663689]
[1739402800762,0.00135604,97938.0,97937.0,0.6637956]
[1739402801173,0.00035604,97938.0,97937.0,0.6637956]
[1739402801548,0.00035604,97938.0,97937.0,0.6647956]
[1739402802590,0.00035604,97938.0,97937.0,0.6667956]
[1739402805882,0.00035604,97938.0,97937.0,0.76929925]
[1739402812038,0.15351404,97938.0,97937.0,0.5136366]
[1739402812920,0.00035604,97938.0,97937.0,0.5136366]
[1739402813549,0.00035604,97938.0,97937.0,0.6667956]
[1739402814095,0.00035604,97938.0,97937.0,0.6637956]
[1739402816081,0.00035604,97938.0,97937.0,0.6647956]
[1739402818631,0.00035604,97938.0,97937.0,0.6637956]
[1739402818803,0.00035604,97938.0,97937.0,0.6657956]
[1739402819007,0.00035604,97938.0,97937.0,0.6637956]
[1739402819206,0.00035604,97938.0,97937.0,0.6657956]
[1739402820404,0.204177,97954.0,97937.0,0.7168476]
[1739402820623,0.153142,97948.0,97943.0,0.153148]
[1739402820868,0.153139,97950.0,97943.0,0.153148]
[1739402821125,0.204181,97952.0,97937.0,0.5126366]
[1739402821126,0.153138,97951.0,97937.0,0.5126366]
[1739402821326,0.204181,97952.0,97945.0,0.153146]
[1739402821527,0.153137,97952.0,97945.0,0.153146]
[1739402821781,0.001,97948.0,97943.0,0.204199]
[1739402821994,0.001,97948.0,97946.0,0.153145]
[1739402822211,0.153137,97952.0,97946.0,0.153145]
[1739402822381,0.153137,97952.0,97937.0,0.5106366]
[1739402822382,0.002,97952.0,97937.0,0.5106366]
[1739402822539,0.002,97952.0,97946.0,0.153144]
[1739402822753,0.002,97952.0,97951.0,0.153137]
[1739402823561,0.153124,97960.0,97954.0,0.153133]
[1739402824599,0.153124,97960.0,97955.0,0.153131]
[1739402824793,0.01994302,97961.0,97955.0,0.153131]
[1739402825043,0.003,97960.0,97955.0,0.204174]
[1739402825246,0.003,97960.0,97959.0,0.153125]
[1739402826165,0.003,97960.0,97940.0,0.14021542]
[1739402826364,0.077,97959.0,97941.0,0.10250365]
[1739402826824,0.153131,97955.0,97948.0,0.153141]
[1739402827043,0.153129,97957.0,97950.0,0.153138]
[1739402828622,0.154129,97957.0,97950.0,0.153138]
[1739402829461,0.154129,97957.0,97951.0,0.153137]
[1739402829835,0.001,97957.0,97955.0,0.153131]
[1739402830088,0.001,97957.0,97942.0,0.204202]
[1739402830248,0.001,97957.0,97955.0,0.153131]
[1739402830447,0.204162,97961.0,97955.0,0.153131]
[1739402830646,0.001,97957.0,97954.0,0.153132]
[1739402831014,0.153123,97961.0,97954.0,0.153132]
[1739402831692,0.0768,97965.0,97955.0,0.153131]
[1739402831894,0.153122,97962.0,97955.0,0.153131]
[1739402832096,0.0768,97965.0,97943.0,0.10250365]
[1739402832538,0.001,97961.0,97945.0,0.153146]
[1739402832762,0.001,97961.0,97945.0,0.10250365]
[1739402832937,0.153133,97954.0,97947.0,0.153143]
[1739402833159,0.001,97961.0,97945.0,0.10250365]
[1739402833160,0.153136,97952.0,97946.0,0.153145]
[1739402834435,0.153136,97952.0,97940.0,0.85494042]
[1739402834436,0.08151662,97957.0,97940.0,0.51052]
[1739402834635,0.153153,97941.0,97940.0,0.51052]
[1739402835363,0.285473,97956.0,97946.0,0.002]
[1739402835562,0.285473,97956.0,97940.0,0.51052]
[1739402835563,0.15314,97950.0,97944.0,0.153148]
[1739402836073,0.153143,97948.0,97941.0,0.153153]
[1739402836271,0.153143,97948.0,97940.0,0.51452]
[1739402836480,0.153143,97948.0,97942.0,0.15315]
[1739402837380,0.153143,97948.0,97944.0,0.001]
[1739402837590,0.153147,97945.0,97944.0,0.001]
[1739402838527,0.02080538,97950.0,97940.0,0.51052]
[1739402838750,0.204188,97949.0,97942.0,0.153151]
[1739402838962,0.204188,97949.0,97944.0,0.003]
[1739402839343,0.02080538,97950.0,97944.0,0.003]
[1739402839521,0.153147,97945.0,97944.0,0.003]
[1739402839723,0.02080538,97950.0,97944.0,0.003]
[1739402839927,0.15314,97949.0,97944.0,0.003]
[1739402840625,0.15314,97949.0,97943.0,0.153149]
[1739402841123,0.17394438,97950.0,97942.0,0.205201]
[1739402841336,0.17394438,97950.0,97942.0,0.204201]
[1739402841641,0.0813,97956.0,97949.0,0.15314]
[1739402841836,0.0813,97956.0,97951.0,0.153136]
[1739402842039,0.08151662,97957.0,97943.0,0.001]
[1739402842346,0.15314,97950.0,97945.0,0.153145]
[1739402842704,0.22440945,97953.0,97942.0,0.001]
[1739402842899,0.17336445,97953.0,97948.0,0.153142]
[1739402843125,0.02023045,97953.0,97952.0,0.153136]
[1739402843311,0.02023045,97953.0,97944.0,0.0807]
[1739402843507,0.02023045,97953.0,97944.0,0.284896]
[1739402843712,0.02023045,97953.0,97949.0,0.153139]
[1739402845780,0.02023045,97953.0,97950.0,0.153139]
[1739402845977,0.02023045,97953.0,97951.0,0.153137]
[1739402846576,0.02023045,97953.0,97945.0,0.204194]
[1739402846789,0.153139,97951.0,97940.0,0.51052]
[1739402846998,0.153137,97952.0,97941.0,0.10250365]
[1739402847173,0.153137,97952.0,97945.0,0.153145]
[1739402847705,0.153141,97949.0,97942.0,0.153151]
[1739402847890,0.02023045,97953.0,97942.0,0.10250365]
[1739402848308,0.153141,97949.0,97942.0,0.10250365]
[1739402848512,0.153143,97948.0,97942.0,0.10250365]
[1739402848725,0.153143,97948.0,97945.0,0.001]
[1739402848891,0.153143,97948.0,97942.0,0.10250365]
[1739402849486,0.153144,97947.0,97942.0,0.10250365]
[1739402849683,0.00831563,97951.0,97942.0,0.10250365]
[1739402849952,0.204187,97949.0,97940.0,0.5106265]
[1739402850155,0.153153,97941.0,97940.0,0.5106265]
[1739402851075,0.17219624,97941.0,97940.0,0.5106265]
[1739402851325,0.17219624,97941.0,97940.0,0.5146265]
[1739402852869,0.35779989,97941.0,97940.0,0.5146265]
[1739402853014,0.36611552,97941.0,97940.0,0.0041065]
[1739402854081,0.36611552,97941.0,97940.0,0.0001065]
[1739402854389,0.36611552,97941.0,97940.0,0.0041065]
[1739402855079,0.37829078,97941.0,97940.0,0.0041065]
[1739402856285,0.70629078,97941.0,97940.0,0.0041065]
[1739402857078,0.70629078,97941.0,97940.0,0.0001065]
[1739402858053,0.88129078,97941.0,97940.0,0.0001065]
[1739402858429,0.87929078,97941.0,97940.0,0.0001065]
[1739402859888,0.88329078,97941.0,97940.0,0.0001065]
[1739402860091,0.85629078,97941.0,97940.0,0.0001065]
[1739402860650,0.85297515,97941.0,97940.0,0.0001065]
[1739402860849,0.83393191,97941.0,97940.0,0.0001065]
[1739402861612,0.82175665,97941.0,97940.0,0.0001065]
[1739402863407,0.58865665,97941.0,97940.0,0.0001065]
[1739402863761,0.58865665,97941.0,97924.0,0.20413425]
[1739402863762,0.43550365,97941.0,97924.0,0.20413425]
[1739402863965,0.30670965,97940.0,97926.0,0.153175]
[1739402864121,0.153166,97933.0,97926.0,0.153175]
[1739402864503,0.153166,97933.0,97927.0,0.153174]
[1739402864703,0.153166,97933.0,97924.0,0.20413425]
[1739402864922,0.204215,97936.0,97917.0,0.00023877]
[1739402865242,0.332,97941.0,97920.0,0.14035206]
[1739402865574,0.204206,97940.0,97917.0,0.00023877]
[1739402865776,0.153159,97937.0,97930.0,0.153169]
[1739402865952,0.02069795,97934.0,97930.0,0.153169]
[1739402866363,0.02069795,97934.0,97932.0,0.153167]
[1739402866495,0.02069795,97934.0,97930.0,0.153169]
[1739402866692,0.328,97941.0,97917.0,0.00023877]
[1739402867122,0.002,97933.0,97932.0,0.153167]
[1739402867327,0.153156,97939.0,97930.0,0.204227]
[1739402867527,0.02013538,97936.0,97918.0,0.204252]
[1739402867749,0.02013538,97936.0,97917.0,0.00023877]
[1739402867750,0.153169,97931.0,97924.0,0.153178]
[1739402867965,0.02013538,97936.0,97917.0,0.00023877]
[1739402867966,0.153169,97932.0,97925.0,0.153177]
[1739402868185,0.153169,97931.0,97925.0,0.153177]
[1739402869238,0.153174,97928.0,97919.0,0.20425]
[1739402869436,0.153174,97928.0,97922.0,0.153182]
[1739402870448,0.02013538,97936.0,97917.0,0.00023877]
[1739402870449,0.153189,97918.0,97917.0,0.00023877]
[1739402871653,0.17361886,97918.0,97917.0,0.00023877]
[1739402872690,0.17561886,97918.0,97917.0,0.00023877]
[1739402873096,0.02242986,97918.0,97917.0,0.00023877]
[1739402873302,0.17561886,97918.0,97917.0,0.00023877]
[1739402873871,0.17361886,97918.0,97917.0,0.00023877]
[1739402874210,0.17661886,97918.0,97917.0,0.00023877]
[1739402874671,0.17861886,97918.0,97917.0,0.00023877]
[1739402875024,0.17361886,97918.0,97917.0,0.00023877]
[1739402875381,0.17661886,97918.0,97917.0,0.00023877]
[1739402875973,0.17861886,97918.0,97917.0,0.00023877]
[1739402877215,0.17361886,97918.0,97917.0,0.00023877]
[1739402877628,0.17661886,97918.0,97917.0,0.00023877]
[1739402877957,0.17361886,97918.0,97917.0,0.00023877]
[1739402878170,0.17561886,97918.0,97917.0,0.00023877]
[1739402878733,0.17861886,97918.0,97917.0,0.00023877]
[1739402878935,0.17661886,97918.0,97917.0,0.00023877]
[1739402879130,0.18061886,97918.0,97917.0,0.00023877]
[1739402879747,0.38262251,97918.0,97917.0,0.00023877]
[1739402879921,0.71062251,97918.0,97917.0,0.00023877]
[1739402880330,0.70362251,97918.0,97917.0,0.00023877]
[1739402880777,0.70762251,97918.0,97917.0,0.00023877]
[1739402882093,0.85762251,97918.0,97917.0,7.7e-07]
[1739402882723,0.153249,97880.0,97873.0,0.03751377]
[1739402882944,0.153249,97880.0,97873.0,0.03795453]
[1739402883279,0.14035206,97900.0,97873.0,0.03795453]
[1739402883479,0.16391662,97899.0,97873.0,0.03795453]
[1739402883652,0.15325,97879.0,97873.0,0.20157417]
[1739402883812,0.1739688,97899.0,97873.0,0.04831517]
[1739402884029,0.1739688,97899.0,97873.0,0.010908]
[1739402884030,0.10250365,97898.0,97873.0,0.010908]
[1739402884232,0.001,97880.0,97873.0,0.010908]
[1739402884436,0.154249,97880.0,97873.0,0.00054736]
[1739402884655,0.154249,97880.0,97874.0,0.153258]
[1739402885040,0.15325,97879.0,97874.0,0.153258]
[1739402885237,0.153254,97877.0,97873.0,0.00054736]
[1739402885520,0.001,97880.0,97873.0,0.00054736]
[1739402885722,0.001,97880.0,97875.0,0.153256]
[1739402886121,0.001,97880.0,97873.0,0.20489136]
[1739402886350,0.001,97880.0,97879.0,0.15325]